bitfinex-derivatives/quotes_SOLF0:USTF0_20241211
["timestamp","ask_amount","ask_price","bid_price","bid_amount"]
[1733933460973,2.22,229.45,229.43,2.8275]
[1733933461568,2.22,229.45,229.44,2.1775]
[1733933461768,2.22,229.48,229.43,0.65]
[1733933462275,2.1772,229.47,229.43,2.8275]
[1733933462476,2.1772,229.47,229.43,0.65]
[1733933462776,2.22,229.48,229.43,0.65]
[1733933464182,2.22,229.48,229.41,1.3748]
[1733933465076,2.22,229.48,229.43,2.1775]
[1733933465274,2.22,229.48,229.42,10.02543051]
[1733933465671,2.177,229.5,229.46,2.1773]
[1733933465869,2.177,229.5,229.45,10.02543051]
[1733933465870,2.22,229.5,229.45,10.02543051]
[1733933466277,2.22,229.5,229.49,2.177]
[1733933468374,2.22,229.53,229.5,2.1769]
[1733933468582,2.22,229.55,229.45,10.02543051]
[1733933468776,2.22,229.55,229.51,0.65]
[1733933469171,2.1766,229.54,229.51,0.65]
[1733933469376,2.22,229.55,229.51,0.65]
[1733933469578,2.1767,229.52,229.51,0.65]
[1733933469978,2.22,229.55,229.51,0.65]
[1733933470376,2.1765,229.54,229.51,0.65]
[1733933470773,2.22,229.55,229.51,0.65]
[1733933471883,2.1767,229.52,229.51,0.65]
[1733933472279,12.20213051,229.52,229.51,0.65]
[1733933472780,12.20213051,229.52,229.39,10.02543051]
[1733933472781,10.02543051,229.52,229.43,2.1775]
[1733933473177,10.02543051,229.52,229.37,1.3426]
[1733933473378,12.24543051,229.55,229.39,2.1778]
[1733933473379,10.02543051,229.49,229.39,2.1778]
[1733933473580,10.02543051,229.49,229.24,201.02543051]
[1733933473581,2.22,229.48,229.34,1.4272]
[1733933473882,2.1777,229.41,229.35,2.1782]
[1733933474082,2.22,229.4,229.35,2.1782]
[1733933474484,2.22,229.4,229.35,10.02543051]
[1733933474673,10.02543051,229.49,229.35,12.82473051]
[1733933474879,10.02543051,229.49,229.41,0.65]
[1733933474880,2.22,229.48,229.41,0.65]
[1733933476586,2.1773,229.46,229.41,0.65]
[1733933478086,2.22,229.48,229.41,0.65]
[1733933479084,2.22,229.48,229.35,12.82473051]
[1733933479285,2.1777,229.43,229.37,2.1782]
[1733933479486,2.1777,229.43,229.35,12.82473051]
[1733933479487,2.22,229.42,229.35,2.7993]
[1733933479687,2.22,229.42,229.29,10.02543051]
[1733933479889,2.1781,229.38,229.29,12.2060751]
[1733933480187,2.22,229.42,229.29,12.2060751]
[1733933480390,2.178,229.39,229.29,12.2060751]
[1733933480586,2.22,229.42,229.29,12.2060751]
[1733933481087,2.178,229.38,229.33,2.1786]
[1733933481484,2.22,229.42,229.33,2.1786]
[1733933481680,2.22,229.42,229.29,12.2060751]
[1733933481681,2.1779,229.39,229.31,2.1785]
[1733933481885,2.22,229.42,229.29,12.2060751]
[1733933482283,2.1779,229.38,229.29,12.2060751]
[1733933482687,2.22,229.42,229.29,12.2060751]
[1733933482990,2.22,229.42,229.32,10.02543051]
[1733933483186,2.22,229.42,229.29,12.2060751]
[1733933483887,2.1783,229.35,229.3,2.1786]
[1733933484083,4.3983,229.35,229.3,2.1786]
[1733933484284,2.22,229.35,229.29,2.18064459]
[1733933484480,2.1783,229.34,229.3,2.1787]
[1733933484987,2.22,229.35,229.29,2.18064459]
[1733933485190,2.1785,229.32,229.29,2.18064459]
[1733933485382,2.22,229.35,229.25,4.2258]
[1733933485895,2.22,229.35,229.26,2.179]
[1733933486089,2.22,229.35,229.08,6.5422]
[1733933486090,10.02543051,229.34,229.07,4.3617]
[1733933486285,2.1791,229.26,229.21,2.1795]
[1733933486488,2.22,229.27,229.21,2.1795]
[1733933486888,4.3991,229.27,229.2,10.02543051]
[1733933487194,2.22,229.3,229.24,2.1792]
[1733933487484,2.22,229.3,229.28,0.65]
[1733933488488,4.3987,229.3,229.28,0.65]
[1733933488888,2.1785,229.32,229.28,2.8288]
[1733933489091,6.59452399,229.44,229.28,0.65]
[1733933489092,2.22,229.34,229.28,0.65]
[1733933489486,2.22,229.34,229.31,2.1785]
[1733933490191,2.22,229.34,229.28,0.65]
[1733933490492,2.22,229.34,229.3,2.1787]
[1733933492895,2.22,229.34,229.31,2.1786]
[1733933493093,2.22,229.37,229.29,10.02543051]
[1733933493297,2.22,229.37,229.35,0.65]
[1733933493886,10.02543051,229.46,229.35,0.65]
[1733933494190,2.22,229.45,229.35,10.67543051]
[1733933494594,2.1774,229.44,229.38,2.1779]
[1733933494889,2.1774,229.44,229.35,10.67543051]
[1733933495790,2.22,229.45,229.35,10.67543051]
[1733933496087,2.22,229.44,229.35,10.67543051]
[1733933496491,2.1776,229.43,229.38,2.178]
[1733933496884,2.1776,229.43,229.35,10.67543051]
[1733933497083,2.1776,229.43,229.37,2.1781]
[1733933497291,2.1777,229.41,229.35,10.67543051]
[1733933497492,2.1777,229.41,229.35,10.02543051]
[1733933497795,2.1779,229.39,229.32,10.02543051]
[1733933497987,2.22,229.39,229.32,10.02543051]
[1733933498587,2.1781,229.37,229.32,12.20393051]
[1733933498991,2.22,229.39,229.32,10.02543051]
[1733933499199,2.22,229.39,229.3,4.0829]
[1733933499492,2.22,229.39,229.08,203.54757827]
[1733933499493,2.22,229.39,229.2,7.51425173]
[1733933499691,2.22,229.39,229.24,10.02543051]
[1733933499888,2.22,229.39,229.26,2.179]
[1733933500087,10.02543051,229.37,229.21,4.1971]
[1733933500285,2.1789,229.28,229.22,12.20483051]
[1733933500685,2.22,229.3,229.22,10.02543051]
[1733933500887,2.1788,229.29,229.24,2.1792]
[1733933501693,2.1789,229.28,229.23,2.1794]
[1733933502490,10.02543051,229.28,229.1,2.22]
[1733933502695,10.02543051,229.28,229.14,12.66143051]
[1733933502993,10.02543051,229.28,229.17,2.1799]
[1733933503296,10.02543051,229.28,229.14,12.66143051]
[1733933503493,2.1796,229.21,229.14,12.66143051]
[1733933503890,2.1796,229.21,229.15,5.1735151]
[1733933504093,2.22,229.24,229.15,5.1735151]
[1733933504094,2.1797,229.2,229.16,2.1801]
[1733933504297,2.1797,229.2,229.14,12.66143051]
[1733933504488,2.22,229.24,229.21,0.65]
[1733933505299,2.1795,229.22,229.21,0.65]
[1733933507397,12.20493051,229.22,229.21,0.65]
[1733933507600,10.02543051,229.22,229.08,1.4253]
[1733933507798,10.02543051,229.19,229.08,1.4253]
[1733933508000,2.22,229.18,229.08,1.4253]
[1733933508402,2.1803,229.14,229.08,3.6062]
[1733933508606,2.22,229.18,229.08,1.4253]
[1733933508801,2.1801,229.17,229.1,2.1807]
[1733933508995,2.22,229.18,229.08,1.4253]
[1733933509499,2.1803,229.15,229.07,2.1809]
[1733933509701,2.22,229.18,229.07,2.1809]
[1733933509902,10.02543051,229.13,228.96,2.22]
[1733933510101,2.1806,229.11,229.04,2.1812]
[1733933510302,10.02543051,229.07,228.95,5.214721]
[1733933510500,2.22,229.06,228.92,2.7759]
[1733933510706,10.02543051,229.04,228.92,2.7759]
[1733933511305,10.02543051,229.04,228.92,4.9582]
[1733933511306,2.1816,229.0,228.92,4.9582]
[1733933511505,2.46,229.0,228.93,10.02543051]
[1733933512502,2.46,229.0,228.92,2.7759]
[1733933512702,4.6417,229.0,228.92,2.7759]
[1733933512902,10.02543051,229.07,228.94,10.02543051]
[1733933513205,4.6412,229.06,228.94,10.02543051]
[1733933513408,4.6412,229.06,228.97,10.02543051]
[1733933513811,2.1811,229.05,228.99,2.1817]
[1733933514206,2.46,229.06,228.94,10.02543051]
[1733933514904,10.02543051,229.07,228.94,10.02543051]
[1733933515108,10.02543051,229.1,228.97,10.02543051]
[1733933515409,2.46,229.09,228.97,10.02543051]
[1733933515606,2.181,229.07,229.0,2.1815]
[1733933515810,2.46,229.09,228.98,1.347]
[1733933516600,2.181,229.06,229.01,2.1815]
[1733933516916,10.02543051,229.1,228.98,1.347]
[1733933517105,4.6407,229.09,229.01,2.1814]
[1733933517301,2.46,229.09,228.98,1.347]
[1733933518415,2.46,229.08,229.0,10.02543051]
[1733933518704,2.46,229.08,229.02,2.1813]
[1733933518910,2.46,229.08,229.0,10.02543051]
[1733933519301,2.46,229.08,229.04,2.1812]
[1733933520104,10.02543051,229.07,228.98,1.347]
[1733933520314,10.02543051,229.07,228.94,10.02543051]
[1733933520609,10.02543051,229.07,228.96,2.1819]
[1733933521113,2.1814,229.02,228.96,2.1819]
[1733933521313,2.46,229.01,228.96,2.1819]
[1733933521911,2.46,229.01,228.93,10.02543051]
[1733933523004,2.1816,229.0,228.95,2.182]
[1733933523204,2.1816,229.0,228.93,10.02543051]
[1733933523605,2.1816,229.0,228.95,2.182]
[1733933523808,2.1816,229.0,228.93,10.02543051]
[1733933524116,2.46,229.01,228.92,1.4498]
[1733933524319,2.46,229.01,228.93,2.1822]
[1733933524512,2.46,229.01,228.92,1.4498]
[1733933524726,2.46,229.01,228.93,10.02543051]
[1733933525918,2.46,229.02,228.96,10.02543051]
[1733933526116,1.3243,229.12,228.99,10.02543051]
[1733933526319,1.3243,229.12,229.03,0.65]
[1733933526320,2.46,229.11,229.03,0.65]
[1733933526508,2.46,229.11,229.04,2.1811]
[1733933526713,2.46,229.11,229.03,0.65]
[1733933526914,10.02543051,229.16,229.03,0.65]
[1733933527112,10.02543051,229.16,229.08,2.1808]
[1733933527314,1.3243,229.18,229.05,10.02543051]
[1733933527315,2.1803,229.13,229.05,10.02543051]
[1733933528219,2.46,229.14,229.09,2.1807]
[1733933528515,55.38543051,229.19,229.03,2.0309]
[1733933528516,45.36,229.19,229.08,10.02543051]
[1733933528722,2.46,229.18,229.08,10.02543051]
[1733933530021,2.46,229.18,229.04,10.02543051]
[1733933530219,2.46,229.18,229.03,2.0309]
[1733933530220,10.02543051,229.16,229.03,2.0309]
[1733933530521,10.02543051,229.13,229.03,1.3809]
[1733933530713,2.46,229.12,229.03,1.3809]
[1733933531112,2.46,229.12,229.04,2.1812]
[1733933531311,10.02543051,229.16,229.03,1.3809]
[1733933531511,2.46,229.15,229.03,1.3809]
[1733933532118,2.1804,229.13,229.03,1.3809]
[1733933532423,2.1804,229.13,229.04,10.02543051]
[1733933533323,2.1805,229.12,229.04,10.02543051]
[1733933534425,2.1805,229.12,229.07,2.1809]
[1733933534624,2.46,229.15,229.04,10.02543051]
[1733933534818,10.02543051,229.19,229.08,2.1809]
[1733933535020,2.46,229.18,229.04,10.02543051]
[1733933535520,2.1801,229.17,229.04,10.02543051]
[1733933535728,2.1801,229.17,229.07,10.02543051]
[1733933536616,2.46,229.18,229.07,10.02543051]
[1733933536822,5.25673297,229.2,229.1,10.02543051]
[1733933537014,2.46,229.19,229.1,10.02543051]
[1733933537221,2.46,229.19,229.16,2.1801]
[1733933537721,2.46,229.19,229.11,1.4398]
[1733933537919,11.34943051,229.25,229.13,10.02543051]
[1733933537920,2.46,229.21,229.13,10.02543051]
[1733933538318,2.46,229.21,229.16,2.18]
[1733933538525,4.6397,229.21,229.13,10.02543051]
[1733933538720,2.46,229.21,229.13,10.02543051]
[1733933539021,2.46,229.22,229.13,10.02543051]
[1733933539415,2.1796,229.22,229.17,2.18]
[1733933539621,2.46,229.22,229.17,2.18]
[1733933539931,4.6396,229.22,229.17,2.18]
[1733933540130,4.6396,229.22,229.18,2.1799]
[1733933541026,4.6396,229.22,229.13,10.02543051]
[1733933541027,1.354,229.31,229.16,10.02543051]
[1733933541225,2.58,229.3,229.19,10.02543051]
[1733933541418,2.58,229.3,229.23,0.65]
[1733933541623,45.38,229.32,229.23,0.65]
[1733933541823,10.02543051,229.36,229.23,0.65]
[1733933542021,2.58,229.35,229.23,0.65]
[1733933542218,2.58,229.35,229.27,2.1791]
[1733933542724,2.1786,229.33,229.27,2.1791]
[1733933543028,2.58,229.35,229.25,10.02543051]
[1733933543823,2.58,229.35,229.29,2.1789]
[1733933543824,4.7583,229.35,229.29,2.1789]
[1733933545434,2.58,229.35,229.21,12.86823051]
[1733933546729,2.1787,229.31,229.22,2.1794]
[1733933546929,2.58,229.35,229.22,2.1794]
[1733933547325,2.179,229.28,229.22,2.1794]
[1733933547530,4.759,229.28,229.22,2.1794]
[1733933548425,10.02543051,229.36,229.24,10.02543051]
[1733933548426,2.58,229.33,229.24,10.02543051]
[1733933549028,2.58,229.33,229.21,12.86823051]
[1733933549427,2.58,229.33,229.22,2.1795]
[1733933549828,2.58,229.33,229.21,12.86823051]
[1733933550426,2.179,229.29,229.23,2.1795]
[1733933550631,2.58,229.33,229.21,12.86823051]
[1733933551138,2.179,229.29,229.22,2.1795]
[1733933551429,2.58,229.33,229.22,2.1795]
[1733933552034,2.179,229.28,229.22,2.1795]
[1733933552233,2.58,229.27,229.2,1.4482]
[1733933552628,2.58,229.27,229.14,14.19893051]
[1733933552929,12.60543051,229.27,229.14,14.19893051]
[1733933553244,12.60543051,229.27,229.14,4.1735]
[1733933553533,10.02543051,229.24,229.11,10.02543051]
[1733933553736,10.02543051,229.24,229.08,10.02543051]
[1733933554037,10.02543051,229.21,229.08,10.02543051]
[1733933554334,10.02543051,229.18,229.05,10.02543051]
[1733933554534,10.02543051,229.18,229.06,2.1811]
[1733933554729,2.1805,229.12,229.06,2.1811]
[1733933554927,2.58,229.12,229.05,10.02543051]
[1733933555537,4.7605,229.12,229.05,10.02543051]
[1733933555733,2.58,229.12,229.05,10.02543051]
[1733933556237,2.58,229.12,229.07,2.1809]
[1733933556438,2.58,229.17,229.05,10.02543051]
[1733933556737,10.02543051,229.18,229.05,10.02543051]
[1733933556932,2.1803,229.14,229.07,2.1809]
[1733933557335,2.58,229.17,229.05,10.02543051]
[1733933558130,2.58,229.17,229.05,12.20653051]
[1733933558332,7.73527504,229.17,229.05,12.20653051]
[1733933558731,2.1805,229.12,229.05,12.20653051]
[1733933558929,2.58,229.11,229.05,12.20653051]
[1733933559136,2.58,229.11,229.03,6.276]
[1733933559336,2.1808,229.09,229.03,6.276]
[1733933559732,2.58,229.11,229.03,6.276]
[1733933559938,2.1809,229.08,229.03,6.276]
[1733933560836,2.181,229.07,229.03,4.0947]
[1733933561039,2.58,229.11,228.99,10.02543051]
[1733933561339,10.02543051,229.09,228.98,2.1818]
[1733933562040,2.58,229.11,228.96,12.81083051]
[1733933562242,2.58,229.11,228.99,10.02543051]
[1733933563337,2.181,229.07,229.01,2.1814]
[1733933563537,2.58,229.11,228.99,10.02543051]
[1733933563736,2.58,229.11,228.98,5.20900436]
[1733933564137,2.58,229.11,228.99,2.1817]
[1733933564541,2.58,229.1,228.99,2.1817]
[1733933565538,2.1812,229.06,228.99,2.1817]
[1733933565738,2.1812,229.06,229.0,2.1816]
[1733933566640,2.58,229.1,229.03,2.1813]
[1733933567135,2.58,229.1,228.99,10.02543051]
[1733933567338,2.1809,229.08,229.02,2.1814]
[1733933567939,4.7609,229.08,229.02,2.1814]
[1733933568436,2.58,229.12,229.02,10.02543051]
[1733933568845,4.7606,229.12,229.06,2.181]
[1733933570044,2.1806,229.12,229.06,2.181]
[1733933570246,2.1806,229.11,229.06,2.181]
[1733933572450,2.7739,229.23,229.08,10.02543051]
[1733933572451,10.02543051,229.21,229.08,10.02543051]
[1733933572642,7.84203516,229.22,229.11,10.02543051]
[1733933572841,2.52,229.21,229.11,10.02543051]
[1733933573051,2.52,229.21,229.12,1.3691]
[1733933573348,10.02543051,229.27,229.12,1.3691]
[1733933573547,2.52,229.26,229.14,10.02543051]
[1733933574740,2.1796,229.22,229.14,10.02543051]
[1733933574949,2.52,229.26,229.14,10.02543051]
[1733933575245,2.1795,229.24,229.14,10.02543051]
[1733933575745,2.1795,229.23,229.18,2.1799]
[1733933576154,2.52,229.28,229.17,10.02543051]
[1733933576446,2.52,229.3,229.2,10.02543051]
[1733933576948,2.1791,229.28,229.23,2.1795]
[1733933577250,2.52,229.3,229.2,10.02543051]
[1733933577447,2.52,229.31,229.2,10.02543051]
[1733933577646,2.52,229.31,229.23,10.02543051]
[1733933578044,4.6987,229.31,229.26,2.1791]
[1733933578248,2.52,229.31,229.24,1.3524]
[1733933579950,2.52,229.31,229.18,1.4499]
[1733933580164,10.02543051,229.3,229.18,1.4499]
[1733933580453,2.1797,229.21,229.18,1.4499]
[1733933580643,2.52,229.24,229.16,1.3453]
[1733933581152,2.1799,229.19,229.16,1.3453]
[1733933581353,2.52,229.24,229.16,1.3453]
[1733933581856,2.1795,229.23,229.17,2.18]
[1733933582154,2.52,229.24,229.17,2.18]
[1733933582347,4.6994,229.24,229.19,2.1798]
[1733933582546,2.52,229.24,229.17,10.02543051]
[1733933582746,2.52,229.24,229.18,2.1799]
[1733933582747,4.6994,229.24,229.18,2.1799]
[1733933583257,4.6994,229.24,229.17,10.02543051]
[1733933583854,4.6994,229.24,229.2,2.1798]
[1733933584054,4.6994,229.24,229.17,10.02543051]
[1733933584356,2.1795,229.23,229.17,10.02543051]
[1733933584658,2.1795,229.23,229.18,2.1799]
[1733933584862,2.52,229.24,229.17,10.02543051]
[1733933585060,10.02543051,229.33,229.2,10.02543051]
[1733933585465,2.52,229.32,229.2,10.02543051]
[1733933586166,2.1791,229.27,229.23,2.1795]
[1733933586568,2.52,229.32,229.17,10.02543051]
[1733933586865,2.1795,229.23,229.19,2.1798]
[1733933587464,10.02543051,229.3,229.17,10.02543051]
[1733933587664,2.1796,229.22,229.18,2.1799]
[1733933587965,2.52,229.26,229.18,2.1799]
[1733933588167,2.52,229.26,229.16,1.3453]
[1733933588661,2.1799,229.19,229.16,1.3453]
[1733933588867,2.52,229.26,229.16,1.3453]
[1733933589067,2.18,229.18,229.16,1.3453]
[1733933589264,2.18,229.18,229.15,3.507]
[1733933589569,2.52,229.26,229.15,3.507]
[1733933589868,10.02543051,229.24,229.13,2.1804]
[1733933590465,2.1797,229.21,229.13,2.1804]
[1733933590660,2.1797,229.21,229.11,2.7125]
[1733933590661,2.52,229.2,229.11,2.7125]
[1733933591264,2.52,229.2,229.05,10.02543051]
[1733933591265,10.02543051,229.18,229.05,15.25703425]
[1733933591466,10.02543051,229.18,229.05,10.02543051]
[1733933591673,10.02543051,229.18,229.06,2.181]
[1733933592673,10.02543051,229.18,229.08,2.1809]
[1733933592966,10.02543051,229.18,229.04,1.362]
[1733933593173,2.1805,229.12,229.04,1.362]
[1733933593770,2.1805,229.12,229.05,2.1811]
[1733933594069,2.1805,229.12,229.04,6.64749355]
[1733933594267,2.1805,229.12,229.06,2.181]
[1733933594462,2.52,229.13,228.79,206.26690787]
[1733933594664,10.02543051,229.08,228.93,11.39953051]
[1733933594867,2.52,229.07,228.95,2.1821]
[1733933595064,2.1815,229.02,228.95,2.1821]
[1733933595262,2.1815,229.02,228.94,5.36310649]
[1733933595467,2.52,229.07,228.94,5.36310649]
[1733933595665,10.02543051,229.05,228.93,1.3741]
[1733933596070,10.02543051,229.02,228.93,1.3741]
[1733933596266,10.02543051,229.02,228.92,2.7052]
[1733933596267,2.52,229.01,228.86,10.02543051]
[1733933596869,2.52,229.01,228.89,10.02543051]
[1733933597071,2.52,229.01,228.89,15.22462211]
[1733933597268,2.52,229.01,228.89,5.1991916]
[1733933597473,2.182,228.96,228.89,7.3817916]
[1733933597674,2.52,228.95,228.89,7.3817916]
[1733933598376,4.7021,228.95,228.89,7.3817916]
[1733933598967,2.52,228.95,228.89,5.1991916]
[1733933599174,2.1824,228.92,228.86,2.1829]
[1733933600068,2.1824,228.92,228.87,2.1829]
[1733933600275,2.52,228.95,228.87,2.1829]
[1733933600669,2.1824,228.92,228.85,2.183]
[1733933600872,2.1824,228.92,228.81,4.2]
[1733933601573,2.52,228.95,228.85,5.28766262]
[1733933601774,2.1825,228.91,228.85,5.28766262]
[1733933603076,2.1825,228.91,228.86,2.183]
[1733933603270,21.33981824,229.0,228.81,4.2]
[1733933603271,2.46,228.9,228.81,4.2]
[1733933603776,2.1831,228.85,228.81,4.2]
[1733933604671,2.1832,228.84,228.81,4.2]
[1733933604871,2.1832,228.84,228.79,7.50113642]
[1733933605075,2.46,228.85,228.78,2.1837]
[1733933605378,2.1835,228.81,228.76,5.33151311]
[1733933605573,2.46,228.85,228.76,2.1839]
[1733933605871,2.46,228.85,228.74,4.3176]
[1733933606573,2.46,228.85,228.81,2.1834]
[1733933606781,2.46,228.85,228.75,21.26307775]
[1733933607676,2.46,228.85,228.75,5.15012633]
[1733933608479,1.3796,228.99,228.78,16.11295142]
[1733933608480,2.46,228.89,228.78,16.11295142]
[1733933608775,2.46,228.89,228.86,0.65]
[1733933609877,4.6427,228.89,228.86,0.65]
[1733933610582,2.46,228.89,228.86,0.65]
[1733933610780,2.46,228.89,228.86,2.8329]
[1733933610979,2.46,228.89,228.86,0.65]
[1733933611184,2.46,228.93,228.86,0.65]
[1733933611476,5.22686682,229.0,228.86,0.65]
[1733933611672,2.46,228.99,228.87,4.1545]
[1733933611876,2.46,229.05,228.91,16.11295142]
[1733933612078,2.46,229.04,228.97,2.1818]
[1733933612271,2.46,229.04,228.91,16.11295142]
[1733933612476,2.1815,229.02,228.96,2.1819]
[1733933612876,2.1815,229.02,228.92,2.46]
[1733933613280,2.46,229.04,228.92,2.46]
[1733933613281,2.1817,229.0,228.92,2.46]
[1733933613581,16.11295142,228.93,228.75,5.15012633]
[1733933613779,2.1827,228.89,228.77,2.8326]
[1733933613972,2.46,228.92,228.77,2.8326]
[1733933614179,16.11295142,228.89,228.75,2.1839]
[1733933614778,16.11295142,228.89,228.72,4.1907]
[1733933614779,2.1834,228.82,228.76,2.1839]
[1733933614980,2.46,228.81,228.72,4.1907]
[1733933615177,2.46,228.81,228.73,5.29645018]
[1733933615375,16.11295142,228.89,228.73,5.29645018]
[1733933615579,16.11295142,228.93,228.74,16.11295142]
[1733933615880,2.1826,228.9,228.79,2.1836]
[1733933616075,2.46,228.92,228.74,18.57295142]
[1733933617082,21.30141776,228.93,228.73,5.29645018]
[1733933617083,16.11295142,228.88,228.73,5.29645018]
[1733933617282,2.46,228.87,228.73,5.29645018]
[1733933617674,2.46,228.87,228.75,2.184]
[1733933618077,2.1834,228.82,228.76,2.1839]
[1733933618283,2.46,228.81,228.76,2.1839]
[1733933618983,4.6434,228.81,228.73,5.29645018]
[1733933619380,2.46,228.81,228.73,5.29645018]
[1733933619588,2.46,228.81,228.78,2.1837]
[1733933620785,2.46,228.85,228.73,5.29645018]
[1733933620990,2.46,228.86,228.82,0.65]
[1733933623994,2.1831,228.85,228.82,0.65]
[1733933624192,2.46,228.86,228.82,0.65]
[1733933624793,2.46,228.86,228.84,2.183]
[1733933625596,2.1827,228.89,228.84,2.183]
[1733933625791,4.6427,228.89,228.84,2.183]
[1733933625987,16.11295142,228.95,228.76,18.57295142]
[1733933626192,64.40365142,228.99,228.8,16.11295142]
[1733933626388,2.46,228.98,228.81,2.46]
[1733933626589,2.1821,228.96,228.9,2.1825]
[1733933626802,2.46,228.98,228.84,16.11295142]
[1733933627093,2.182,228.96,228.88,2.1827]
[1733933627291,2.182,228.96,228.84,16.11295142]
[1733933627790,2.46,228.98,228.84,16.11295142]
[1733933628494,2.1823,228.93,228.82,6.6554]
[1733933628695,4.6423,228.93,228.82,6.6554]
[1733933631598,4.6423,228.93,228.89,2.1827]
[1733933632099,2.46,228.93,228.87,2.1828]
[1733933632294,2.46,228.93,228.82,4.1954]
[1733933632600,2.46,228.93,228.84,2.1831]
[1733933632792,2.46,228.93,228.82,4.1954]
[1733933632999,2.1829,228.86,228.83,2.1831]
[1733933633503,2.46,228.93,228.83,2.1831]
[1733933633898,2.46,228.93,228.84,2.183]
[1733933633899,2.1828,228.88,228.84,2.183]
[1733933634603,2.1828,228.87,228.83,2.1831]
[1733933635105,2.52,228.86,228.69,16.11295142]
[1733933635307,2.52,228.86,228.74,2.7655]
[1733933636605,2.52,228.86,228.78,2.1836]
[1733933637801,2.52,228.86,228.74,2.7655]
[1733933637996,2.52,228.86,228.77,2.1837]
[1733933638195,2.52,228.86,228.74,2.7655]
[1733933638397,2.1833,228.82,228.76,2.1838]
[1733933638995,2.1833,228.82,228.77,2.1837]
[1733933639305,2.1835,228.8,228.74,2.7655]
[1733933639494,2.52,228.8,228.74,2.7655]
[1733933640496,2.1836,228.79,228.74,4.9494]
[1733933641006,2.52,228.8,228.74,4.9494]
[1733933641600,2.1836,228.79,228.74,4.9494]
[1733933642304,2.1836,228.79,228.75,2.1839]
[1733933643098,2.1837,228.78,228.74,4.9495]
[1733933643998,2.1837,228.78,228.74,2.7655]
[1733933644901,2.1837,228.78,228.75,2.1839]
[1733933645206,4.7035,228.8,228.74,2.7655]
[1733933645605,4.7035,228.8,228.76,2.1838]
[1733933646298,2.52,228.8,228.74,2.7655]
[1733933646498,2.1836,228.79,228.74,4.9495]
[1733933646707,2.1836,228.79,228.74,2.7655]
[1733933646899,2.1836,228.79,228.75,2.1839]
[1733933648301,2.184,228.75,228.67,2.7159]
[1733933648511,2.52,228.74,228.67,2.7159]
[1733933648896,2.52,228.74,228.69,2.1844]
[1733933648897,2.1842,228.73,228.69,2.1844]
[1733933649307,2.52,228.74,228.67,2.7159]
[1733933649899,2.52,228.74,228.63,11.49370111]
[1733933650299,2.52,228.74,228.64,5.30906825]
[1733933650508,2.1843,228.72,228.67,2.1847]
[1733933650708,2.1843,228.72,228.64,5.30906825]
[1733933651100,2.1843,228.72,228.68,2.1845]
[1733933652001,4.7041,228.74,228.64,5.30906825]
[1733933652605,2.1842,228.73,228.67,2.1847]
[1733933652910,2.1842,228.73,228.64,5.30906825]
[1733933655403,2.1843,228.72,228.64,5.30906825]
[1733933655806,2.52,228.74,228.64,5.30906825]
[1733933656112,2.1844,228.71,228.64,5.30906825]
[1733933656613,2.1844,228.71,228.68,2.1846]
[1733933656812,2.52,228.74,228.64,5.30906825]
[1733933656813,2.1843,228.72,228.64,5.30906825]
[1733933657614,2.1843,228.72,228.68,2.1846]
[1733933658012,2.1844,228.71,228.68,2.1846]